[Event "GER-ch-Seniors-50 2019"]
[Site "Radebeul"]
[Date "2019.04.26"]
[Round "1.4"]
[White "Metz, Hartmut"]
[Black "Lauckner, Joerg"]
[Result "1-0"]
[ECO "B34"]
[WhiteElo "2251"]
[BlackElo "1975"]
[Annotator "RC"]
[PlyCount "83"]
[EventDate "2019.04.26"]
[EventType "swiss"]
[EventCountry "GER"]
[SourceTitle "playchess.com"]
[Source "ChessBase"]
[SourceQuality "1"]
[TimeControl "40/5400+30:1800+30"]

1. e4 {[%emt 0:00:00]} c5 {[%emt 0:00:00]} 2. Nf3 {[%emt 0:00:00]} g6 {[%emt 0:00:00]} 3. d4 {[%emt 0:00:00]} cxd4 {[%emt 0:00:00]} 4. Nxd4 {[%emt 0:00:32]} Nc6 {[%emt 0:00:04]} 5. Nc3 {[%emt 0:00:22]} Bg7 {[%emt 0:00:28]} 6. Nde2 {[%emt 0:00:25]} Nf6 7. g3 d6 {[%emt 0:03:28]} 8. Bg2 {[%emt 0:00:23]} Bg4 {[%emt 0:02:24]} 9. h3 {[%emt 0:00:23]} Be6 {[%emt 0:01:13]} 10. O-O {[%emt 0:00:56]} Bc4 {[%emt 0:17:58]} 11. Be3 {[%emt 0:03:43]} O-O {[%emt 0:01:13]} 12. Rc1 {[%emt 0:11:48]} Nd7 {[%emt 0:12:08]} 13. Re1 {[%emt 0:05:48]} Qa5 {[%emt 0:17:26]} 14. Bd2 {[%emt 0:03:38]} Rac8 {[%emt 0:09:12]} 15. a3 {[%emt 0:04:45]} f5 {[%emt 0:01:41]} 16. Nd5 {[%emt 0:05:37]} Qa6 {[%emt 0:21:01]} 17. exf5 {[%emt 0:16:14]} Rxf5 {[%emt 0:03:34]} 18. Nec3 {[%emt 0:05:23]} Re5 {[%emt 0:01:56]} 19. Qg4 {[%emt 0:10:09]} Rd8 {[%emt 0:01:58]} 20. f4 {[%emt 0:10:53]} Rxe1+ {[%emt 0:00:59]} 21. Rxe1 {[%emt 0:00:01]} Nf6 {[%emt 0:01:04]} 22. Nxf6+ {[%emt 0:04:19]} exf6 {[%emt 0:01:04]} 23. Kh2 {[%emt 0:02:12]} f5 {[%emt 0:00:59]} 24. Qd1 {[%emt 0:02:01]} d5 {[%emt 0:00:51]} 25. b3 {[%emt 0:05:15]} d4 {[%emt 0:00:06]} 26. Na4 {[%emt 0:00:43]} Bf7 {[%emt 0:00:23]} 27. Nc5 {[%emt 0:00:33]} Qb5 {[%emt 0:01:00]} 28. Ne6 {[%emt 0:01:03]} Re8 {[%emt 0:01:00]} 29. Nxg7 {[%emt 0:01:36]} Rxe1 {[%emt 0:00:10]} 30. Bxe1 {[%emt 0:01:22]} Kxg7 {[%emt 0:00:07]} 31. Bf2 {[%emt 0:00:45]} d3 {[%emt 0:00:30]} 32. c4 {[%emt 0:01:19]} Qa5 {[%emt 0:00:31]} 33. Qxd3 {[%emt 0:00:26]} Qxa3 {[%emt 0:00:12]} 34. h4 {[%emt 0:01:22]} Qb2 {[%emt 0:00:24]} 35. Be1 {[%emt 0:00:39]} Qc1 {[%emt 0:00:41]} 36. Bc3+ {[%emt 0:00:22]} Kh6 {[%emt 0:00:33]} 37. Bf6 {[%emt 0:00:33]} Qe1 {[%emt 0:00:54]} 38. Qd6 {[%emt 0:00:30]} Qe2 {[%emt 0:00:10]} 39. Qf8+ {[%emt 0:00:21]} Kh5 {[%emt 0:00:20]} 40. Qxf7 {[%emt 0:00:38]} Kg4 {[%emt 0:00:44]} 41. Qxh7 {[%emt 0:30:21]} Qe8 {[%emt 0:02:46]} 42. Qh6 {[%emt 0:00:00]} 1-0

[Event "GER-ch-Seniors-50 2019"]
[Site "Radebeul"]
[Date "2019.04.26"]
[Round "1.5"]
[White "Spiess, Thomas"]
[Black "Held, Peter"]
[Result "1/2-1/2"]
[ECO "A06"]
[WhiteElo "1965"]
[BlackElo "2179"]
[Annotator "NA RC"]
[PlyCount "90"]
[EventDate "2019.04.26"]
[EventType "swiss"]
[EventCountry "GER"]
[SourceTitle "playchess.com"]
[Source "ChessBase"]
[SourceQuality "1"]
[TimeControl "40/5400+30:1800+30"]

1. Nf3 {[%emt 0:03:32]} d5 {[%emt 0:00:00]} 2. c4 {[%emt 0:01:15]} c6 {[%emt 0:00:20]} 3. e3 {[%emt 0:00:29]} e6 {[%emt 0:00:59]} 4. d4 {[%emt 0:02:25]} f5 {[%emt 0:00:31]} 5. Bd3 {[%emt 0:00:09]} Nf6 {[%emt 0:00:19]} 6. O-O {[%emt 0:00:06]} Bd6 {[%emt 0:00:26]} 7. b3 {[%emt 0:00:09]} Qe7 {[%emt 0:02:06]} 8. Bb2 {[%emt 0:00:14]} O-O {[%emt 0:00:10]} 9. Qc1 {[%emt 0:00:08]} b6 {[%emt 0:01:17]} 10. Ba3 {[%emt 0:01:37]} c5 {[%emt 0:00:36]} 11. Nc3 {[%emt 0:04:20]} Nbd7 {[%emt 0:00:53]} 12. cxd5 {[%emt 0:03:24]} Nxd5 {[%emt 0:04:33]} 13. Nb5 {[%emt 0:08:29]} Bb8 {[%emt 0:04:11]} 14. dxc5 {[%emt 0:06:13]} bxc5 {[%emt 0:20:46]} 15. Rd1 {[%emt 0:12:53]} Bb7 {[%emt 0:04:18]} 16. Qd2 {[%emt 0:07:34]} a6 {[%emt 0:07:24]} 17. Nbd4 {[%emt 0:04:28]} Bd6 {[%emt 0:15:25]} 18. Ne2 {[%emt 0:29:18]} Rfd8 {[%emt 0:08:01]} 19. Ng3 {[%emt 0:02:11]} Ne5 {[%emt 0:10:31]} 20. Nxe5 {[%emt 0:07:41]} Bxe5 {[%emt 0:00:30]} 21. Rac1 {[%emt 0:00:03]} Rac8 {[%emt 0:04:52]} 22. Qe2 {[%emt 0:01:08]} Nc3 {[%emt 0:01:59]} 23. Rxc3 {[%emt 0:02:58]} Bxc3 {[%emt 0:00:04]} 24. Rc1 {[%emt 0:00:13]} Be5 {[%emt 0:03:36]} 25. Bc4 {[%emt 0:00:12]} Kh8 {[%emt 0:05:07]} 26. f4 {[%emt 0:00:21]} Bf6 {[%emt 0:02:23]} 27. Nh5 {[%emt 0:00:11]} Rd7 {[%emt 0:00:54]} 28. Nxf6 {[%emt 0:00:29]} gxf6 {[%emt 0:00:07]} 29. Bb2 {[%emt 0:00:51]} Rcd8 {[%emt 0:00:15]} 30. Bc3 {[%emt 0:00:12]} Rd6 {[%emt 0:01:23]} 31. Qh5 {[%emt 0:00:34]} Qg7 {[%emt 0:00:21]} 32. g3 {[%emt 0:00:19]} Be4 {[%emt 0:00:55]} 33. Qh4 {[%emt 0:00:35]} e5 {[%emt 0:00:12]} 34. fxe5 {[%emt 0:00:40]} fxe5 {[%emt 0:00:03]} 35. Bxa6 {[%emt 0:01:26]} Rd1+ {[%emt 0:00:16]} 36. Rxd1 {[%emt 0:00:04]} Rxd1+ {[%emt 0:00:05]} 37. Kf2 {[%emt 0:00:12]} Rd6 {[%emt 0:00:52]} 38. Bc4 {[%emt 0:00:17]} Bd5 {[%emt 0:00:37]} 39. Bxd5 {[%emt 0:00:30]} Rxd5 {[%emt 0:00:02]} 40. Qa4 {[%emt 0:00:42]} Qf8 {[%emt 0:01:26]} 41. Qc6 {[%emt 0:03:34]} Qd8 {[%emt 0:06:25]} 42. Qe6 {[%emt 0:12:30]} Rd2+ {[%emt 0:02:04]} 43. Bxd2 {[%emt 0:01:33]} Qxd2+ {[%emt 0:00:05]} 44. Kf3 {[%emt 0:02:44]} Qd1+ {[%emt 0:00:26]} 45. Kf2 {[%emt 0:00:36]} Qd2+ {[%emt 0:00:07]} 1/2-1/2

[Event "GER-ch-Seniors-50 2019"]
[Site "Radebeul"]
[Date "2019.04.26"]
[Round "1.6"]
[White "Terhorst, Jochen"]
[Black "Steinert, Frank"]
[Result "1/2-1/2"]
[ECO "C06"]
[WhiteElo "2165"]
[BlackElo "1960"]
[Annotator "NA"]
[PlyCount "46"]
[EventDate "2019.04.26"]
[EventType "swiss"]
[EventCountry "GER"]
[SourceTitle "playchess.com"]
[Source "ChessBase"]
[SourceQuality "1"]
[TimeControl "40/5400+30:1800+30"]

1. e4 {[%emt 0:00:00]} e6 {[%emt 0:00:00]} 2. d4 {[%emt 0:00:00]} d5 {[%emt 0:00:00]} 3. Bd3 {[%emt 0:00:00]} Nf6 {[%emt 0:02:12]} 4. e5 {[%emt 0:00:56]} Nfd7 {[%emt 0:00:03]} 5. Ne2 {[%emt 0:00:18]} c5 {[%emt 0:00:22]} 6. c3 {[%emt 0:00:07]} Nc6 {[%emt 0:00:26]} 7. Nd2 {[%emt 0:05:58]} cxd4 {[%emt 0:00:16]} 8. cxd4 {[%emt 0:00:14]} f6 {[%emt 0:00:56]} 9. Nf4 {[%emt 0:09:23]} Nxd4 {[%emt 0:00:01]} 10. Qh5+ {[%emt 0:01:01]} Ke7 {[%emt 0:00:27]} 11. exf6+ {[%emt 0:05:17]} Nxf6 {[%emt 0:00:24]} 12. Qh4 {[%emt 0:03:56]} e5 {[%emt 0:01:46]} 13. Ng6+ {[%emt 0:03:18]} hxg6 {[%emt 0:00:11]} 14. Qxh8 {[%emt 0:00:02]} Kf7 {[%emt 0:00:19]} 15. Qh4 {[%emt 0:11:27]} e4 {[%emt 0:02:34]} 16. Bb1 {[%emt 0:04:37]} Qc7 {[%emt 0:05:54]} 17. O-O {[%emt 0:16:05]} Bd6 {[%emt 0:10:13]} 18. f4 {[%emt 0:12:24]} Ne2+ {[%emt 0:06:31]} 19. Kh1 {[%emt 0:01:06]} Bf5 {[%emt 0:03:34]} 20. Nb3 {[%emt 0:02:14]} d4 {[%emt 0:06:25]} 21. Bd2 {[%emt 0:06:56]} e3 {[%emt 0:05:18]} 22. Bxf5 {[%emt 0:00:18]} gxf5 {[%emt 0:00:08]} 23. Nxd4 {[%emt 0:02:28]} exd2 {[%emt 0:10:23]} 1/2-1/2

[Event "GER-ch-Seniors-50 2019"]
[Site "Radebeul"]
[Date "2019.04.27"]
[Round "2.1"]
[White "Belke, Frank, Dr."]
[Black "Schulze, Andreas"]
[Result "1-0"]
[ECO "A80"]
[WhiteElo "2283"]
[BlackElo "2135"]
[Annotator "NA"]
[PlyCount "181"]
[EventDate "2019.04.26"]
[EventType "swiss"]
[EventCountry "GER"]
[SourceTitle "playchess.com"]
[Source "ChessBase"]
[SourceQuality "1"]
[TimeControl "40/5400+30:1800+30"]

{[%evp 9,174,15,18,32767,32767,29,32767,32767,57,27,58,16,43,6,32767,18,32767,6,4,0,18,18,13,-7,32767,32767,32767,32767,-2,32767,0,12,32767,32767,73,32767,32767,70,114,32767,112,32767,124,101,143,116,32767,151,32767,32767,174,32767,167,174,32767,183,177,186,183,181,176,181,175,183,187,32767,183,186,189,183,32767,32767,177,185,32767,32767,32767,183,32767,32767,188,191,182,185,32767,195,186,32767,32767,191,32767,32767,188,187,32767,180,186,32767,187,194,188,187,32767,32767,32767,32767,32767,32767,32767,32767,32767,32767,32767,32767,32767,32767,32767,32767,32767,188,32767,32767,32767,32767,293,32767,32767,32767,32767,151,151,0,146,0,0,0,0,32767,0,-50,0,0,0,0,0,0,0,32767,32767,32767,32767,0,0,-89,0,0,0,0,32767,32767,29982,29983,29983,29984,29984,32767,29962]} 1. d4 {[%emt 0:00:00]} f5 {[%emt 0:00:00]} 2. Nc3 {[%emt 0:00:00]} Nf6 {[%emt 0:00:10]} 3. Bg5 {[%emt 0:00:00]} d5 {[%emt 0:00:11]} 4. f3 {[%emt 0:00:00]} Nc6 {[%emt 0:03:01]} 5. Nh3 {[%emt 0:02:47]} (5. Qd2 h6 6. Bxf6 exf6 7. e3 Be6 8. Bb5 Qd7 9. Nge2 a6 10. Ba4 O-O-O 11. a3 b5 12. Bb3 Na5 {½-½ (26) Kveinys,A (2509)-Pap,M (2493) Bad Woerishofen 2017}) 5... e6 {[%emt 0:05:51]} 6. Qd2 {[%emt 0:01:51] A80: Dutch Defence: Unusual White second moves} Bb4 {[%emt 0:01:09]} 7. a3 {[%emt 0:00:14]} Ba5 $146 {[%emt 0:00:06]} ({Predecessor:} 7... Be7 8. e3 O-O 9. Nf2 a6 10. Be2 Kh8 11. Nd3 Qe8 12. Bf4 Bd6 {½-½ (42) Brumen,D (2359)-Deglmann,L (2402) Austria 2011}) 8. e3 {[%emt 0:02:03]} O-O {[%emt 0:06:28]} 9. Be2 {[%emt 0:09:31]} a6 {[%emt 0:12:32]} 10. b4 {[%emt 0:03:40]} Bb6 {[%emt 0:00:20]} 11. f4 {[%emt 0:00:02]} Qe8 {[%emt 0:09:45]} 12. Nf2 {[%emt 0:05:48]} Nd8 {[%emt 0:01:33]} 13. Bxf6 {[%emt 0:10:01]} Rxf6 {[%emt 0:01:34]} 14. g4 {[%emt 0:00:00]} c6 {[%emt 0:14:57]} 15. g5 {[%emt 0:00:30]} Rf8 {[%emt 0:00:06]} 16. Na4 {[%emt 0:03:16]} Bc7 {[%emt 0:00:06]} 17. Nc5 {[%emt 0:00:17]} b6 {[%emt 0:00:13]} 18. Nb3 {[%emt 0:00:04]} Nb7 {[%emt 0:03:56]} 19. O-O {[%emt 0:12:32]} Nd6 {[%emt 0:00:26]} 20. a4 {[%emt 0:02:03]} Bd7 {[%emt 0:04:01]} 21. a5 {[%emt 0:00:55]} b5 {[%emt 0:00:47]} 22. Nc5 {[%emt 0:00:22]} Qe7 {[%emt 0:01:18]} 23. Bf3 {[%emt 0:03:05]} Bc8 {[%emt 0:02:34]} 24. Nfd3 {[%emt 0:01:13]} Nc4 {[%emt 0:00:45]} 25. Qe2 {[%emt 0:02:49]} Bd6 {[%emt 0:00:08]} 26. h4 {[%emt 0:00:29]} Ra7 {[%emt 0:00:41]} 27. Rf2 {[%emt 0:00:52]} Kh8 {[%emt 0:00:34]} 28. Rg2 {[%emt 0:00:15]} Rc7 {[%emt 0:01:32]} 29. Kf2 {[%emt 0:00:42]} Ra7 {[%emt 0:00:48]} 30. Rh1 {[%emt 0:02:22]} Bd7 {[%emt 0:00:48]} 31. c3 {[%emt 0:01:13]} Be8 {[%emt 0:01:19]} 32. Ke1 {[%emt 0:05:37]} Ra8 {[%emt 0:02:55]} 33. Kd1 {[%emt 0:00:08]} Ra7 {[%emt 0:00:16]} 34. Kc1 {[%emt 0:00:02]} Ra8 {[%emt 0:00:53]} 35. Qe1 {[%emt 0:00:38]} Ra7 {[%emt 0:02:39]} 36. Bd1 {[%emt 0:00:26]} Bc7 {[%emt 0:01:47]} 37. h5 {[%emt 0:01:59]} Bd6 {[%emt 0:10:01]} 38. Bb3 {[%emt 0:02:53]} Ra8 {[%emt 0:00:13]} 39. Qg3 {[%emt 0:03:26]} Ra7 {[%emt 0:00:59]} 40. Bxc4 {[%emt 0:00:52]} bxc4 {[%emt 0:00:08]} 41. Ne5 {[%emt 0:31:05]} Bxe5 {[%emt 0:30:08]} 42. dxe5 {[%emt 0:00:52]} Bd7 {[%emt 0:01:27]} 43. Qe1 {[%emt 0:00:11]} Bc8 {[%emt 0:00:33]} 44. Qd2 {[%emt 0:00:09]} Ra8 {[%emt 0:05:00]} 45. Qd4 {[%emt 0:01:00]} Rb8 {[%emt 0:00:11]} 46. Kc2 {[%emt 0:03:50]} Kg8 {[%emt 0:00:17]} 47. Rb1 {[%emt 0:00:49]} Qc7 {[%emt 0:02:52]} 48. Rf2 {[%emt 0:00:55]} Qe7 {[%emt 0:00:35]} 49. Na4 {[%emt 0:03:24]} Rb5 {[%emt 0:00:11]} 50. Rbf1 {[%emt 0:00:36]} Qc7 {[%emt 0:05:23]} 51. Nc5 {[%emt 0:11:31]} Qe7 {[%emt 0:00:00]} 52. Rd2 {[%emt 0:00:00]} Qc7 {[%emt 0:00:00]} 53. Kd1 {[%emt 0:00:00]} Qe7 {[%emt 0:00:00]} 54. Ke2 {[%emt 0:00:00]} Qc7 {[%emt 0:00:00]} 55. Kf2 {[%emt 0:00:00]} Qe7 {[%emt 0:00:00]} 56. Ra1 {[%emt 0:00:00]} Qc7 {[%emt 0:00:00]} 57. h6 {[%emt 0:00:00]} g6 {[%emt 0:00:00]} 58. Rdd1 {[%emt 0:00:00]} Qe7 {[%emt 0:00:00]} 59. Qd2 {[%emt 0:00:00]} Qc7 {[%emt 0:00:00]} 60. Qc1 {[%emt 0:00:00]} Qa7 {[%emt 0:00:00]} 61. Rd4 {[%emt 0:00:00]} Qe7 {[%emt 0:00:00]} 62. Qa3 {[%emt 0:00:00]} Qa7 {[%emt 0:00:00]} 63. Rad1 {[%emt 0:00:00]} Qe7 {[%emt 0:00:00]} 64. R1d2 {[%emt 0:00:00]} Qa7 {[%emt 0:00:00]} 65. Qa2 {[%emt 0:00:00]} Qe7 {[%emt 0:00:00]} 66. Na4 {[%emt 0:00:00]} Bd7 {[%emt 0:00:00]} (66... Rb8 $142 67. Kf3 Rb5) 67. Nb6 {[%emt 0:00:00]} Be8 {[%emt 0:00:00]} 68. Nc8 {[%emt 0:00:00]} Qc7 {[%emt 0:00:00]} 69. Nd6 {[%emt 0:00:00]} Rb8 {[%emt 0:00:00]} 70. Qa3 $2 {[%emt 0:00:00]} (70. Rb2 $18) 70... Bf7 {[%emt 0:00:00]} (70... c5 $1 $11 71. bxc5 Rb3) 71. Nxc4 {[%emt 0:00:00]} ({White should try} 71. Rb2 $16) 71... c5 $1 {[%emt 0:00:00]} 72. bxc5 {[%emt 0:00:00]} dxc4 {[%emt 0:00:00]} 73. Rxc4 {[%emt 0:00:29]} Qc6 {[%emt 0:00:00]} 74. Rd1 {[%emt 0:03:58]} Rfd8 {[%emt 0:01:14]} 75. Rxd8+ {[%emt 0:02:20]} Rxd8 {[%emt 0:00:08]} 76. Rd4 {[%emt 0:00:11]} Rxd4 {[%emt 0:00:47]} 77. cxd4 {[%emt 0:00:24]} Be8 {[%emt 0:00:38]} 78. Qb3 {[%emt 0:02:23]} Kf8 {[%emt 0:05:01]} 79. Qb8 {[%emt 0:00:52]} Ke7 {[%emt 0:01:32]} 80. Qa7+ {[%emt 0:05:04]} Bd7 {[%emt 0:00:51]} 81. Qb8 {[%emt 0:00:01] [#]} (81. Qb6 $11) 81... Qc8 {[%emt 0:01:08]} ({Better is} 81... Bc8 $1 $17 82. Ke2 Qb5+ 83. Qxb5 axb5) 82. Qd6+ {[%emt 0:00:49]} Ke8 $1 {[%emt 0:01:23]} 83. d5 {[%emt 0:01:23]} exd5 {[%emt 0:00:48]} 84. Qf6 {[%emt 0:00:02]} Qc6 $2 {[%emt 0:03:20]} (84... Qxc5 $11 85. Qh8+ (85. e6 Bb5 $11) 85... Ke7) 85. Qh8+ {[%emt 0:00:28] Double Attack} Ke7 {[%emt 0:00:05]} 86. Qxh7+ {[%emt 0:00:02]} Kd8 {[%emt 0:00:00]} 87. Qh8+ {[%emt 0:00:26]} Kc7 {[%emt 0:00:06]} 88. Qf6 {[%emt 0:00:11]} Qa4 {[%emt 0:00:21]} 89. Qb6+ {[%emt 0:00:13]} Kc8 {[%emt 0:00:05]} 90. Qxa6+ {[%emt 0:00:46]} Kd8 {[%emt 0:00:08]} 91. h7 1-0

[Event "GER-ch-Seniors-50 2019"]
[Site "Radebeul"]
[Date "2019.04.28"]
[Round "3.1"]
[White "Stahr, Ralf-Peter"]
[Black "Belke, Frank"]
[Result "1/2-1/2"]
[ECO "A27"]
[WhiteElo "2160"]
[BlackElo "2283"]
[Annotator "NA"]
[PlyCount "121"]
[EventDate "2019.04.26"]
[EventType "swiss"]
[EventCountry "GER"]
[SourceTitle "playchess.com"]
[Source "ChessBase"]
[SourceQuality "1"]
[TimeControl "40/5400+30:1800+30"]

1. c4 {[%emt 0:00:00]} e5 {[%emt 0:00:00]} 2. Nc3 {[%emt 0:00:00]} Nc6 {[%emt 0:00:00]} 3. Nf3 {[%emt 0:00:00]} f5 {[%emt 0:00:00]} 4. d4 {[%emt 0:00:00]} e4 {[%emt 0:00:00]} 5. Ng5 {[%emt 0:00:10]} h6 {[%emt 0:00:00]} 6. Nh3 {[%emt 0:00:07]} g5 {[%emt 0:00:00]} 7. e3 {[%emt 0:00:22] A27: English Opening: Three Knights Variation} Bg7 {[%emt 0:00:00]} 8. Be2 {[%emt 0:00:18]} Nf6 {[%emt 0:00:00]} 9. Bh5+ {[%emt 0:00:19]} (9. f3 exf3 10. gxf3 d5 11. Nf2 Be6 12. e4 fxe4 13. fxe4 O-O 14. cxd5 Nxd5 15. exd5 Bxd5 {1-0 (25) Naiditsch,A (2702)-Kulkarni,R (2344) Caleta 2017}) 9... Nxh5 {[%emt 0:00:36]} 10. Qxh5+ {[%emt 0:00:08]} Kf8 {[%emt 0:00:02]} 11. f3 {[%emt 0:01:14]} exf3 {[%emt 0:06:51]} 12. Qxf3 {[%emt 0:00:53]} d6 {[%emt 0:00:01]} 13. O-O {[%emt 0:04:07]} Kg8 {[%emt 0:06:27]} 14. g4 $146 {[%emt 0:22:01]} ({Predecessor:} 14. Kh1 Bd7 15. Ng1 Kh7 {1-0 (41) Nagy,E (2269)-Brustkern,J (2283) Budapest 2011}) 14... Ne7 {[%emt 0:11:14]} 15. Nd5 {[%emt 0:09:48]} Nxd5 {[%emt 0:05:09]} 16. Qxd5+ {[%emt 0:00:27]} Kh7 {[%emt 0:00:02]} 17. gxf5 {[%emt 0:05:40]} Rf8 {[%emt 0:03:06]} 18. Bd2 {[%emt 0:06:48]} Qe7 {[%emt 0:09:18]} 19. f6 {[%emt 0:05:32]} Bxf6 {[%emt 0:03:27]} 20. Nf2 {[%emt 0:00:37]} Bg7 {[%emt 0:02:37]} 21. b3 {[%emt 0:02:16]} Rb8 {[%emt 0:07:45]} 22. Rae1 {[%emt 0:01:15]} Bd7 {[%emt 0:00:36]} 23. Qg2 {[%emt 0:03:38]} Bc6 {[%emt 0:03:35]} 24. d5 {[%emt 0:00:27]} Bd7 {[%emt 0:00:01]} 25. Ne4 {[%emt 0:08:01]} Rxf1+ {[%emt 0:03:58]} 26. Rxf1 {[%emt 0:00:12]} Rf8 {[%emt 0:00:08]} 27. Rxf8 {[%emt 0:01:49]} Qxf8 {[%emt 0:00:02]} 28. Ng3 {[%emt 0:03:26]} Be8 {[%emt 0:04:17]} 29. Qe2 {[%emt 0:08:42]} Bg6 {[%emt 0:00:49]} 30. e4 {[%emt 0:01:34]} Be5 {[%emt 0:06:05]} 31. Nf1 {[%emt 0:03:15]} Qe8 {[%emt 0:04:27]} 32. Be3 {[%emt 0:01:26]} b6 {[%emt 0:00:46]} 33. Kf2 {[%emt 0:05:49]} Bh5 {[%emt 0:01:34]} 34. Qd2 {[%emt 0:00:54]} Qf7+ {[%emt 0:00:10]} 35. Kg1 {[%emt 0:00:27]} Qf3 {[%emt 0:03:05]} 36. Qg2 {[%emt 0:00:30]} Qf6 {[%emt 0:03:57]} 37. h3 {[%emt 0:02:56]} Bf3 {[%emt 0:02:10]} 38. Qc2 {[%emt 0:01:27]} Kg7 {[%emt 0:00:47]} 39. Nd2 {[%emt 0:00:20]} Bh5 {[%emt 0:04:52]} 40. Qd3 {[%emt 0:02:04]} g4 {[%emt 0:02:51]} 41. hxg4 {[%emt 0:30:21]} Bxg4 {[%emt 0:32:05]} 42. Qf1 {[%emt 0:00:00]} Qh4 {[%emt 0:00:00]} 43. Qf2 {[%emt 0:00:00]} Qxf2+ {[%emt 0:00:00]} 44. Kxf2 {[%emt 0:00:00]} Kg6 {[%emt 0:00:00]} 45. Nf3 {[%emt 0:00:00]} Bf6 {[%emt 0:00:00]} 46. b4 {[%emt 0:00:00]} h5 {[%emt 0:00:00]} 47. c5 {[%emt 0:00:00]} h4 {[%emt 0:00:00]} 48. cxb6 $11 {[%emt 0:00:00]} cxb6 {[%emt 0:00:00]} 49. Bf4 {[%emt 0:00:00]} Be7 {[%emt 0:00:00]} 50. Nd4 {[%emt 0:00:00]} h3 {[%emt 0:00:00]} 51. Kg3 {[%emt 0:00:00]} Kh5 {[%emt 0:00:00]} 52. Nf3 {[%emt 0:00:00]} a6 {[%emt 0:00:00]} 53. a3 {[%emt 0:00:00]} Bd7 {[%emt 0:00:00]} 54. e5 {[%emt 0:00:00]} dxe5 {[%emt 0:00:00]} 55. Nxe5 {[%emt 0:00:00]} Bf5 {[%emt 0:02:10]} 56. Nc6 {[%emt 0:00:00]} Bh4+ {[%emt 0:00:26]} 57. Kf3 {[%emt 0:00:00]} Bg5 {[%emt 0:01:40]} 58. Bh2 {[%emt 0:00:00]} Kg6 {[%emt 0:01:59]} 59. Nb8 a5 60. d6 Kf7 61. Nc6 1/2-1/2

[Event "GER-ch-Seniors-50 2019"]
[Site "Radebeul"]
[Date "2019.04.28"]
[Round "3.2"]
[White "Nekrasov, Mihail"]
[Black "Loew, Gerald"]
[Result "1-0"]
[ECO "C41"]
[WhiteElo "2277"]
[BlackElo "2157"]
[Annotator "NA"]
[PlyCount "91"]
[EventDate "2019.04.26"]
[EventType "swiss"]
[EventCountry "GER"]
[SourceTitle "playchess.com"]
[Source "ChessBase"]
[SourceQuality "1"]
[TimeControl "40/5400+30:1800+30"]

1. e4 {[%emt 0:00:00]} d6 {[%emt 0:00:00]} 2. d4 {[%emt 0:00:01]} Nf6 {[%emt 0:00:00]} 3. Nc3 {[%emt 0:00:16]} e5 {[%emt 0:00:11]} 4. Nf3 {[%emt 0:00:56]} Nbd7 {[%emt 0:00:24]} 5. Bc4 {[%emt 0:00:24]} Be7 {[%emt 0:00:14]} 6. O-O {[%emt 0:00:16]} O-O {[%emt 0:00:25]} 7. Re1 {[%emt 0:03:25]} c6 {[%emt 0:00:54]} 8. a4 {[%emt 0:00:11]} b6 {[%emt 0:02:34]} 9. Ba2 {[%emt 0:04:41]} a6 {[%emt 0:02:00]} 10. h3 {[%emt 0:04:06]} Rb8 {[%emt 0:01:41]} 11. Be3 {[%emt 0:00:33]} b5 {[%emt 0:02:49]} 12. axb5 {[%emt 0:00:12]} axb5 {[%emt 0:00:12]} 13. b4 {[%emt 0:00:27]} Qc7 {[%emt 0:04:18]} 14. Bb3 {[%emt 0:05:33]} Nb6 {[%emt 0:15:08]} 15. Qd3 {[%emt 0:02:32]} Bd7 {[%emt 0:03:29]} 16. Ra6 {[%emt 0:04:05]} Nc4 {[%emt 0:11:25]} 17. Bxc4 {[%emt 0:09:58]} bxc4 {[%emt 0:00:50]} 18. Qxc4 {[%emt 0:00:10]} Nxe4 {[%emt 0:17:25]} 19. dxe5 {[%emt 0:02:32]} Nxc3 {[%emt 0:00:59]} 20. Qxc3 {[%emt 0:00:11]} dxe5 {[%emt 0:01:11]} 21. Qxe5 {[%emt 0:17:42]} Bd6 {[%emt 0:04:53]} 22. Qa5 {[%emt 0:00:36]} Qxa5 {[%emt 0:13:57]} 23. bxa5 {[%emt 0:00:09]} Bb4 {[%emt 0:01:09]} 24. Rd1 {[%emt 0:05:49]} Be6 {[%emt 0:03:45]} 25. Ne5 {[%emt 0:03:44]} c5 {[%emt 0:05:26]} 26. Nc6 {[%emt 0:03:07]} Rb5 {[%emt 0:03:05]} 27. Nxb4 {[%emt 0:02:23]} cxb4 {[%emt 0:00:14]} 28. Ra1 {[%emt 0:07:13]} b3 {[%emt 0:03:35]} 29. cxb3 {[%emt 0:00:08]} Rxb3 {[%emt 0:00:17]} 30. Rb6 Ra8 {[%emt 0:00:58]} 31. Rxb3 {[%emt 0:00:56]} Bxb3 {[%emt 0:00:04]} 32. a6 {[%emt 0:00:09]} f6 {[%emt 0:01:06]} 33. a7 {[%emt 0:00:19]} Bd5 {[%emt 0:00:35]} 34. Ra5 {[%emt 0:02:22]} Bc6 {[%emt 0:00:33]} 35. Rc5 {[%emt 0:02:27]} Bb7 {[%emt 0:00:33]} 36. Rc7 {[%emt 0:00:13]} Bd5 {[%emt 0:00:33]} 37. f3 {[%emt 0:00:15]} Re8 {[%emt 0:00:33]} 38. Kf2 {[%emt 0:00:08]} Ba8 {[%emt 0:00:34]} 39. g4 {[%emt 0:00:17]} h6 {[%emt 0:00:38]} 40. h4 {[%emt 0:00:18]} Bd5 {[%emt 0:00:35]} 41. Bd4 {[%emt 0:30:49]} Rf8 {[%emt 0:04:49]} 42. g5 {[%emt 0:00:00]} hxg5 {[%emt 0:01:10]} 43. hxg5 {[%emt 0:00:00]} Rf7 {[%emt 0:06:01]} 44. Rc5 {[%emt 0:00:00]} Ba8 {[%emt 0:06:35]} 45. g6 {[%emt 0:00:00]} Rf8 {[%emt 0:00:12]} 46. Rb5 {[%emt 0:00:00]} 1-0